[Event "Titled Tuesday Blitz May 03 Late 2022"]
[White "Skytte, Rasmus"]
[Black "Kohler, Aran"]
[WhiteFideId "1404210"]
[BlackFideId "1002856"]
[WhiteElo "2430"]
[BlackElo "2319"]
[Result "1-0"]
[Round "11"]
[TimeControl "180+1"]
[Date "2022.05.03"]
[WhiteClock "0:00:10"]
[BlackClock "0:00:13"]

1. e4 {[%clk 0:03:00]}  c5 {[%clk 0:02:59]} 2. Nf3 {[%clk 0:02:58]}  d6 {[%clk 0:02:59]} 3. c3 {[%clk 0:02:57]}  Nf6 {[%clk 0:02:51]} 4. Be2 {[%clk 0:02:57]}  Nc6 {[%clk 0:02:49]} 5. d4 {[%clk 0:02:51]}  cxd4 {[%clk 0:02:46]} 6. cxd4 {[%clk 0:02:50]}  Nxe4 {[%clk 0:02:32]} 7. d5 {[%clk 0:02:48]}  Qa5+ {[%clk 0:02:32]} 8. Nc3 {[%clk 0:02:44]}  Nb8 {[%clk 0:02:12]} 9. O-O {[%clk 0:02:36]}  Nxc3 {[%clk 0:02:11]} 10. bxc3 {[%clk 0:02:33]}  e5 {[%clk 0:02:00]} 11. dxe6 {[%clk 0:02:25]}  Bxe6 {[%clk 0:01:58]} 12. Nd4 {[%clk 0:02:24]}  Be7 {[%clk 0:01:53]} 13. Nxe6 {[%clk 0:02:22]}  fxe6 {[%clk 0:01:53]} 14. Qb3 {[%clk 0:02:20]}  Nd7 {[%clk 0:01:13]} 15. Qxe6 {[%clk 0:02:12]}  Qe5 {[%clk 0:01:10]} 16. Qc4 {[%clk 0:02:00]}  d5 {[%clk 0:01:03]} 17. Qb5 {[%clk 0:01:53]}  O-O-O {[%clk 0:00:48]} 18. Be3 {[%clk 0:01:46]}  a6 {[%clk 0:00:41]} 19. Qa5 {[%clk 0:01:22]}  Qc7 {[%clk 0:00:41]} 20. Qxd5 {[%clk 0:01:17]}  Nc5 {[%clk 0:00:38]} 21. Qf5+ {[%clk 0:01:13]}  Kb8 {[%clk 0:00:38]} 22. Rab1 {[%clk 0:01:10]}  Ka8 {[%clk 0:00:28]} 23. Bf3 {[%clk 0:01:08]}  Rb8 {[%clk 0:00:24]} 24. Bxc5 {[%clk 0:00:58]}  Bxc5 {[%clk 0:00:24]} 25. Qe6 {[%clk 0:00:47]}  Ka7 {[%clk 0:00:24]} 26. Rfd1 {[%clk 0:00:41]}  Rhe8 {[%clk 0:00:21]} 27. Qg4 {[%clk 0:00:27]}  Re7 {[%clk 0:00:21]} 28. h4 {[%clk 0:00:22]}  Qe5 {[%clk 0:00:21]} 29. Qc4 {[%clk 0:00:16]}  g6 {[%clk 0:00:18]} 30. Rd5 {[%clk 0:00:14]}  Bxf2+ {[%clk 0:00:15]} 31. Kxf2 {[%clk 0:00:14]}  Qe3+ {[%clk 0:00:15]} 32. Kg3 {[%clk 0:00:13]}  g5 {[%clk 0:00:14]} 33. Qd4+ {[%clk 0:00:13]}  Qxd4 {[%clk 0:00:14]} 34. cxd4 {[%clk 0:00:13]}  gxh4+ {[%clk 0:00:15]} 35. Kxh4 {[%clk 0:00:13]}  Rg7 {[%clk 0:00:14]} 36. Rg5 {[%clk 0:00:13]}  Rf7 {[%clk 0:00:14]} 37. Kg4 {[%clk 0:00:12]}  Rd7 {[%clk 0:00:14]} 38. Kh5 {[%clk 0:00:11]}  Rxd4 {[%clk 0:00:12]} 39. Rg7 {[%clk 0:00:10]}  Rd5+ {[%clk 0:00:12]} 40. Kh6 {[%clk 0:00:10]}  Rb5 {[%clk 0:00:11]} 41. Rxb5 {[%clk 0:00:09]}  axb5 {[%clk 0:00:11]} 42. Kxh7 {[%clk 0:00:09]}  Ka6 {[%clk 0:00:12]} 43. Rg8 {[%clk 0:00:09]}  b6 {[%clk 0:00:13]} 44. Rxb8 {[%clk 0:00:08]}  Ka5 {[%clk 0:00:13]} 45. Ra8+ {[%clk 0:00:09]}  Kb4 {[%clk 0:00:13]} 46. g4 {[%clk 0:00:10]} 1-0


[Site "https://www.chess.com"]

[Event "Titled Tuesday Blitz May 03 Late 2022"]
[White "Tang, Andrew"]
[Black "Drygalov, Sergey"]
[WhiteFideId "2059630"]
[BlackFideId "24171743"]
[WhiteElo "2584"]
[BlackElo "2514"]
[Result "0-1"]
[Round "11"]
[TimeControl "180+1"]
[Date "2022.05.03"]
[WhiteClock "0:00:01"]
[BlackClock "0:00:50"]

1. d4 {[%clk 0:03:00]}  Nf6 {[%clk 0:02:59]} 2. c4 {[%clk 0:02:59]}  e6 {[%clk 0:02:59]} 3. Nc3 {[%clk 0:03:00]}  Bb4 {[%clk 0:03:00]} 4. Qc2 {[%clk 0:03:00]}  d5 {[%clk 0:02:59]} 5. cxd5 {[%clk 0:03:00]}  exd5 {[%clk 0:02:59]} 6. Bg5 {[%clk 0:03:00]}  h6 {[%clk 0:02:59]} 7. Bh4 {[%clk 0:03:01]}  g5 {[%clk 0:02:58]} 8. Bg3 {[%clk 0:03:01]}  Nc6 {[%clk 0:02:58]} 9. e3 {[%clk 0:03:01]}  h5 {[%clk 0:02:55]} 10. h3 {[%clk 0:02:56]}  Ne4 {[%clk 0:02:53]} 11. Bh2 {[%clk 0:02:57]}  Qf6 {[%clk 0:02:36]} 12. Nf3 {[%clk 0:02:46]}  g4 {[%clk 0:02:30]} 13. Ne5 {[%clk 0:02:43]}  g3 {[%clk 0:02:30]} 14. fxg3 {[%clk 0:02:20]}  Bxc3+ {[%clk 0:02:29]} 15. bxc3 {[%clk 0:02:19]}  Nxe5 {[%clk 0:02:29]} 16. dxe5 {[%clk 0:02:19]}  Qxe5 {[%clk 0:02:29]} 17. Bd3 {[%clk 0:01:37]}  Nxg3 {[%clk 0:02:26]} 18. Kd2 {[%clk 0:00:54]}  h4 {[%clk 0:02:21]} 19. Rhe1 {[%clk 0:00:52]}  Be6 {[%clk 0:02:10]} 20. Qa4+ {[%clk 0:00:49]}  c6 {[%clk 0:02:09]} 21. Rab1 {[%clk 0:00:33]}  Qc7 {[%clk 0:01:34]} 22. Rb4 {[%clk 0:00:30]}  b5 {[%clk 0:01:29]} 23. Rxh4 {[%clk 0:00:24]}  bxa4 {[%clk 0:01:12]} 24. Rxh8+ {[%clk 0:00:23]}  Ke7 {[%clk 0:01:13]} 25. Rxa8 {[%clk 0:00:19]}  Qb7 {[%clk 0:01:05]} 26. Rxa7 {[%clk 0:00:14]}  Qxa7 {[%clk 0:00:58]} 27. Bxg3 {[%clk 0:00:15]}  a3 {[%clk 0:00:56]} 28. Rb1 {[%clk 0:00:09]}  d4 {[%clk 0:00:56]} 29. exd4 {[%clk 0:00:07]}  Bxa2 {[%clk 0:00:56]} 30. Ra1 {[%clk 0:00:08]}  Bb3 {[%clk 0:00:55]} 31. Bh4+ {[%clk 0:00:06]}  Kd7 {[%clk 0:00:52]} 32. Bf6 {[%clk 0:00:03]}  a2 {[%clk 0:00:51]} 33. c4 {[%clk 0:00:03]}  Qa5+ {[%clk 0:00:50]} 34. Ke3 {[%clk 0:00:01]}  Qc3 {[%clk 0:00:50]} 35. d5 {[%clk 0:00:01]}  Qxf6 {[%clk 0:00:50]} 0-1


[Site "https://www.chess.com"]

[Event "Titled Tuesday Blitz May 03 Late 2022"]
[White "Toncheva, Nadya"]
[Black "Vusatiuk, Vladimir"]
[WhiteFideId "2924056"]
[BlackFideId "14118610"]
[WhiteElo "1884"]
[BlackElo "2157"]
[Result "1-0"]
[Round "11"]
[TimeControl "180+1"]
[Date "2022.05.03"]
[WhiteClock "0:00:04"]
[BlackClock "0:00:03"]

1. e4 {[%clk 0:01:24]}  c5 {[%clk 0:02:59]} 2. Nf3 {[%clk 0:01:23]}  e6 {[%clk 0:02:58]} 3. d4 {[%clk 0:01:24]}  cxd4 {[%clk 0:02:59]} 4. Nxd4 {[%clk 0:01:25]}  a6 {[%clk 0:03:00]} 5. c4 {[%clk 0:01:25]}  Nf6 {[%clk 0:02:59]} 6. Nc3 {[%clk 0:01:25]}  Qc7 {[%clk 0:03:00]} 7. Be2 {[%clk 0:01:23]}  d6 {[%clk 0:03:00]} 8. O-O {[%clk 0:01:23]}  b6 {[%clk 0:03:00]} 9. Be3 {[%clk 0:01:23]}  Bb7 {[%clk 0:03:01]} 10. f3 {[%clk 0:01:23]}  Nbd7 {[%clk 0:03:01]} 11. Qd2 {[%clk 0:01:24]}  Be7 {[%clk 0:03:02]} 12. Rfd1 {[%clk 0:01:23]}  O-O {[%clk 0:03:02]} 13. b4 {[%clk 0:01:22]}  Rac8 {[%clk 0:03:00]} 14. Nb3 {[%clk 0:01:22]}  Qb8 {[%clk 0:02:51]} 15. Na4 {[%clk 0:01:20]}  Bc6 {[%clk 0:02:29]} 16. Nc3 {[%clk 0:01:14]}  Rfd8 {[%clk 0:02:24]} 17. Rac1 {[%clk 0:01:11]}  Ne5 {[%clk 0:02:06]} 18. Qd4 {[%clk 0:00:55]}  Ned7 {[%clk 0:01:41]} 19. f4 {[%clk 0:00:53]}  e5 {[%clk 0:01:24]} 20. Qd3 {[%clk 0:00:53]}  exf4 {[%clk 0:01:20]} 21. Bxf4 {[%clk 0:00:54]}  Ne5 {[%clk 0:01:21]} 22. Qe3 {[%clk 0:00:36]}  Ba8 {[%clk 0:01:10]} 23. Nd5 {[%clk 0:00:35]}  Nxd5 {[%clk 0:01:09]} 24. exd5 {[%clk 0:00:30]}  Bf6 {[%clk 0:01:09]} 25. Nd4 {[%clk 0:00:25]}  Re8 {[%clk 0:01:08]} 26. Qf2 {[%clk 0:00:25]}  b5 {[%clk 0:01:00]} 27. cxb5 {[%clk 0:00:20]}  Rxc1 {[%clk 0:00:53]} 28. Bxc1 {[%clk 0:00:21]}  Bxd5 {[%clk 0:00:44]} 29. bxa6 {[%clk 0:00:21]}  Bxa2 {[%clk 0:00:39]} 30. Nf5 {[%clk 0:00:19]}  d5 {[%clk 0:00:23]} 31. Bf4 {[%clk 0:00:11]}  Qxb4 {[%clk 0:00:20]} 32. a7 {[%clk 0:00:08]}  Nc6 {[%clk 0:00:11]} 33. Bd6 {[%clk 0:00:03]}  Qb7 {[%clk 0:00:07]} 34. Bf3 {[%clk 0:00:02]}  g6 {[%clk 0:00:07]} 35. Nh6+ {[%clk 0:00:02]}  Kg7 {[%clk 0:00:07]} 36. Ng4 {[%clk 0:00:02]}  Bd4 {[%clk 0:00:07]} 37. Rxd4 {[%clk 0:00:02]}  Nxd4 {[%clk 0:00:05]} 38. Qxd4+ {[%clk 0:00:03]}  Kg8 {[%clk 0:00:03]} 39. Nh6# {[%clk 0:00:04]} 1-0


[Site "https://www.chess.com"]

[Event "Titled Tuesday Blitz May 03 Late 2022"]
[White "Turutin, Alexander"]
[Black "Melikhov, Evgeny V."]
[WhiteFideId "4180623"]
[BlackFideId "4122046"]
[WhiteElo "2402"]
[BlackElo "1931"]
[Result "1-0"]
[Round "11"]
[TimeControl "180+1"]
[Date "2022.05.03"]
[WhiteClock "0:00:34"]
[BlackClock "0:01:17"]

1. e4 {[%clk 0:02:52]}  e5 {[%clk 0:02:59]} 2. Nf3 {[%clk 0:02:52]}  Nc6 {[%clk 0:02:59]} 3. Bb5 {[%clk 0:02:52]}  a6 {[%clk 0:02:59]} 4. Ba4 {[%clk 0:02:52]}  Nf6 {[%clk 0:02:59]} 5. O-O {[%clk 0:02:52]}  Nxe4 {[%clk 0:02:59]} 6. d4 {[%clk 0:02:47]}  b5 {[%clk 0:02:59]} 7. Bb3 {[%clk 0:02:47]}  d5 {[%clk 0:02:59]} 8. dxe5 {[%clk 0:02:47]}  Be6 {[%clk 0:03:00]} 9. Nbd2 {[%clk 0:02:46]}  Bc5 {[%clk 0:02:59]} 10. Qe2 {[%clk 0:02:27]}  Bf5 {[%clk 0:02:39]} 11. c3 {[%clk 0:02:01]}  Nxd2 {[%clk 0:02:31]} 12. Bxd2 {[%clk 0:01:45]}  Na5 {[%clk 0:02:30]} 13. Nd4 {[%clk 0:01:41]}  Bxd4 {[%clk 0:02:24]} 14. cxd4 {[%clk 0:01:42]}  Nxb3 {[%clk 0:02:24]} 15. axb3 {[%clk 0:01:42]}  O-O {[%clk 0:02:23]} 16. Rfc1 {[%clk 0:01:41]}  Qe7 {[%clk 0:01:49]} 17. Rc5 {[%clk 0:01:33]}  f6 {[%clk 0:01:43]} 18. Rac1 {[%clk 0:01:30]}  fxe5 {[%clk 0:01:42]} 19. Rxc7 {[%clk 0:01:27]}  Qh4 {[%clk 0:01:41]} 20. Qxe5 {[%clk 0:01:17]}  Rf6 {[%clk 0:01:38]} 21. Qxd5+ {[%clk 0:01:12]}  Be6 {[%clk 0:01:32]} 22. Qxa8+ {[%clk 0:01:11]}  Rf8 {[%clk 0:01:33]} 23. g3 {[%clk 0:00:36]}  Qxd4 {[%clk 0:01:21]} 24. Qa7 {[%clk 0:00:36]}  Qe4 {[%clk 0:01:17]} 25. Rxg7+ {[%clk 0:00:34]}  Kh8 {[%clk 0:01:17]} 26. Bc3 {[%clk 0:00:34]} 1-0


[Site "https://www.chess.com"]

[Event "Titled Tuesday Blitz May 03 Late 2022"]
[White "Vlassov, Nikolai"]
[Black "Wagner, Dennis"]
[WhiteFideId "4103360"]
[BlackFideId "24650684"]
[WhiteElo "2407"]
[BlackElo "2355"]
[Result "1-0"]
[Round "11"]
[TimeControl "180+1"]
[Date "2022.05.03"]
[WhiteClock "0:00:35"]
[BlackClock "0:00:03"]

1. e4 {[%clk 0:03:00]}  c5 {[%clk 0:02:59]} 2. c3 {[%clk 0:03:00]}  Nf6 {[%clk 0:02:56]} 3. e5 {[%clk 0:03:00]}  Nd5 {[%clk 0:02:57]} 4. d4 {[%clk 0:03:01]}  cxd4 {[%clk 0:02:57]} 5. cxd4 {[%clk 0:03:02]}  d6 {[%clk 0:02:57]} 6. Bc4 {[%clk 0:03:02]}  Nb6 {[%clk 0:02:54]} 7. Bb3 {[%clk 0:03:03]}  dxe5 {[%clk 0:02:54]} 8. Qh5 {[%clk 0:03:03]}  e6 {[%clk 0:02:49]} 9. dxe5 {[%clk 0:03:03]}  Nc6 {[%clk 0:02:43]} 10. Nc3 {[%clk 0:03:03]}  g6 {[%clk 0:02:38]} 11. Qg5 {[%clk 0:03:02]}  Be7 {[%clk 0:02:31]} 12. Qg3 {[%clk 0:02:57]}  h5 {[%clk 0:02:03]} 13. Nf3 {[%clk 0:02:49]}  Qd3 {[%clk 0:02:00]} 14. Bg5 {[%clk 0:02:45]}  h4 {[%clk 0:01:51]} 15. Qf4 {[%clk 0:02:39]}  h3 {[%clk 0:01:43]} 16. Rd1 {[%clk 0:02:13]}  hxg2 {[%clk 0:01:41]} 17. Rg1 {[%clk 0:02:13]}  Qf5 {[%clk 0:01:30]} 18. Qxf5 {[%clk 0:02:05]}  exf5 {[%clk 0:01:26]} 19. Nb5 {[%clk 0:01:57]}  Bxg5 {[%clk 0:00:54]} 20. Nc7+ {[%clk 0:01:36]}  Ke7 {[%clk 0:00:53]} 21. Nxa8 {[%clk 0:01:35]}  Nxa8 {[%clk 0:00:37]} 22. Nxg5 {[%clk 0:01:35]}  Nxe5 {[%clk 0:00:32]} 23. Rxg2 {[%clk 0:01:31]}  f4 {[%clk 0:00:24]} 24. f3 {[%clk 0:01:22]}  f6 {[%clk 0:00:24]} 25. Re2 {[%clk 0:01:18]}  Nb6 {[%clk 0:00:11]} 26. Nf7 {[%clk 0:01:17]}  Rxh2 {[%clk 0:00:09]} 27. Nxe5 {[%clk 0:01:08]}  Rxe2+ {[%clk 0:00:09]} 28. Kxe2 {[%clk 0:01:08]}  fxe5 {[%clk 0:00:10]} 29. Bc2 {[%clk 0:01:01]}  Bf5 {[%clk 0:00:09]} 30. Bxf5 {[%clk 0:00:58]}  gxf5 {[%clk 0:00:09]} 31. Rh1 {[%clk 0:00:57]}  Kd6 {[%clk 0:00:05]} 32. Rh7 {[%clk 0:00:54]}  Kc6 {[%clk 0:00:05]} 33. Rf7 {[%clk 0:00:51]}  Nc4 {[%clk 0:00:06]} 34. Rxf5 {[%clk 0:00:49]}  Kd5 {[%clk 0:00:04]} 35. b3 {[%clk 0:00:47]}  Nd6 {[%clk 0:00:04]} 36. Rh5 {[%clk 0:00:45]}  a5 {[%clk 0:00:05]} 37. Kd3 {[%clk 0:00:43]}  b6 {[%clk 0:00:05]} 38. Rh6 {[%clk 0:00:38]}  Nb7 {[%clk 0:00:04]} 39. Rxb6 {[%clk 0:00:37]}  Nc5+ {[%clk 0:00:04]} 40. Ke2 {[%clk 0:00:35]}  Ne6 {[%clk 0:00:03]} 41. Rb5+ {[%clk 0:00:35]} 1-0


[Site "https://www.chess.com"]

[Event "Titled Tuesday Blitz May 03 Late 2022"]
[White "Vujic, Mihailo"]
[Black "Ansh M Shah"]
[WhiteFideId "918873"]
[BlackFideId "25033379"]
[WhiteElo "2256"]
[BlackElo "1819"]
[Result "1/2-1/2"]
[Round "11"]
[TimeControl "180+1"]
[Date "2022.05.03"]
[WhiteClock "0:00:03"]
[BlackClock "0:00:23"]

1. e4 {[%clk 0:02:51]}  c6 {[%clk 0:02:53]} 2. d4 {[%clk 0:02:49]}  d5 {[%clk 0:02:53]} 3. f3 {[%clk 0:02:49]}  dxe4 {[%clk 0:02:51]} 4. fxe4 {[%clk 0:02:40]}  e5 {[%clk 0:02:51]} 5. Nf3 {[%clk 0:02:40]}  Bg4 {[%clk 0:02:48]} 6. Bc4 {[%clk 0:02:41]}  Bxf3 {[%clk 0:02:47]} 7. Qxf3 {[%clk 0:02:39]}  Nf6 {[%clk 0:02:45]} 8. dxe5 {[%clk 0:02:37]}  Qa5+ {[%clk 0:02:46]} 9. Nc3 {[%clk 0:02:32]}  Qxe5 {[%clk 0:02:46]} 10. Bf4 {[%clk 0:02:32]}  Qd4 {[%clk 0:02:40]} 11. Bb3 {[%clk 0:02:11]}  Bb4 {[%clk 0:02:33]} 12. e5 {[%clk 0:01:48]}  Nd5 {[%clk 0:02:17]} 13. Bxd5 {[%clk 0:01:26]}  Qxd5 {[%clk 0:02:08]} 14. Qxd5 {[%clk 0:01:15]}  cxd5 {[%clk 0:02:05]} 15. O-O-O {[%clk 0:01:08]}  Bxc3 {[%clk 0:01:59]} 16. bxc3 {[%clk 0:01:09]}  Nc6 {[%clk 0:01:59]} 17. Rxd5 {[%clk 0:01:09]}  Rd8 {[%clk 0:01:55]} 18. Rxd8+ {[%clk 0:01:08]}  Kxd8 {[%clk 0:01:56]} 19. Rd1+ {[%clk 0:01:07]}  Ke7 {[%clk 0:01:57]} 20. Bg5+ {[%clk 0:01:00]}  f6 {[%clk 0:01:56]} 21. exf6+ {[%clk 0:00:59]}  gxf6 {[%clk 0:01:57]} 22. Re1+ {[%clk 0:00:55]}  Kf7 {[%clk 0:01:57]} 23. Rf1 {[%clk 0:00:55]}  Re8 {[%clk 0:01:46]} 24. Rxf6+ {[%clk 0:00:52]}  Kg7 {[%clk 0:01:46]} 25. Rd6 {[%clk 0:00:51]}  Na5 {[%clk 0:01:27]} 26. Bh6+ {[%clk 0:00:44]}  Kf7 {[%clk 0:01:26]} 27. Rd7+ {[%clk 0:00:42]}  Re7 {[%clk 0:01:23]} 28. Rxe7+ {[%clk 0:00:41]}  Kxe7 {[%clk 0:01:24]} 29. Kd2 {[%clk 0:00:41]}  Ke6 {[%clk 0:01:23]} 30. Kd3 {[%clk 0:00:40]}  Kd5 {[%clk 0:01:24]} 31. g4 {[%clk 0:00:39]}  Nc6 {[%clk 0:01:25]} 32. Bg7 {[%clk 0:00:36]}  Nd8 {[%clk 0:01:22]} 33. Bd4 {[%clk 0:00:33]}  a6 {[%clk 0:01:19]} 34. c4+ {[%clk 0:00:34]}  Ke6 {[%clk 0:01:19]} 35. Ke4 {[%clk 0:00:34]}  b5 {[%clk 0:01:19]} 36. cxb5 {[%clk 0:00:32]}  axb5 {[%clk 0:01:20]} 37. c3 {[%clk 0:00:31]}  Nf7 {[%clk 0:01:19]} 38. h4 {[%clk 0:00:30]}  Nd6+ {[%clk 0:01:20]} 39. Kf4 {[%clk 0:00:29]}  Nf7 {[%clk 0:01:16]} 40. g5 {[%clk 0:00:29]}  Nd6 {[%clk 0:01:16]} 41. h5 {[%clk 0:00:29]}  Nf7 {[%clk 0:01:03]} 42. g6 {[%clk 0:00:29]}  hxg6 {[%clk 0:01:03]} 43. hxg6 {[%clk 0:00:30]}  Nd8 {[%clk 0:00:43]} 44. g7 {[%clk 0:00:29]}  Kf7 {[%clk 0:00:44]} 45. Ke5 {[%clk 0:00:29]}  Kxg7 {[%clk 0:00:43]} 46. Kd6+ {[%clk 0:00:26]}  Kf7 {[%clk 0:00:43]} 47. Kc5 {[%clk 0:00:20]}  Ke6 {[%clk 0:00:42]} 48. Kxb5 {[%clk 0:00:20]}  Kd5 {[%clk 0:00:43]} 49. Bb6 {[%clk 0:00:17]}  Ne6 {[%clk 0:00:42]} 50. c4+ {[%clk 0:00:17]}  Kd6 {[%clk 0:00:42]} 51. a4 {[%clk 0:00:14]}  Kd7 {[%clk 0:00:42]} 52. Ka6 {[%clk 0:00:09]}  Kc8 {[%clk 0:00:35]} 53. Ka7 {[%clk 0:00:06]}  Nf8 {[%clk 0:00:31]} 54. c5 {[%clk 0:00:06]}  Nd7 {[%clk 0:00:31]} 55. c6 {[%clk 0:00:06]}  Ne5 {[%clk 0:00:31]} 56. c7 {[%clk 0:00:05]}  Nc6+ {[%clk 0:00:32]} 57. Ka8 {[%clk 0:00:04]}  Nb4 {[%clk 0:00:25]} 58. a5 {[%clk 0:00:03]}  Nd5 {[%clk 0:00:26]} 59. Ka7 {[%clk 0:00:03]}  Nxc7 {[%clk 0:00:23]} 1/2-1/2


[Site "https://www.chess.com"]

[Event "Titled Tuesday Blitz May 03 Late 2022"]
[White "Wartiovaara, Oliver"]
[Black "Seletsky, Grigory"]
[WhiteFideId "513024"]
[BlackFideId "14112191"]
[WhiteElo "1971"]
[BlackElo "2492"]
[Result "0-1"]
[Round "11"]
[TimeControl "180+1"]
[Date "2022.05.03"]
[WhiteClock "0:00:01"]
[BlackClock "0:00:29"]

1. e4 {[%clk 0:03:00]}  e6 {[%clk 0:02:55]} 2. d4 {[%clk 0:03:00]}  d5 {[%clk 0:02:55]} 3. Nc3 {[%clk 0:02:58]}  Nc6 {[%clk 0:02:54]} 4. e5 {[%clk 0:02:56]}  Nge7 {[%clk 0:02:51]} 5. Nf3 {[%clk 0:02:52]}  Nf5 {[%clk 0:02:50]} 6. Bb5 {[%clk 0:02:36]}  Bd7 {[%clk 0:02:49]} 7. O-O {[%clk 0:02:34]}  Be7 {[%clk 0:02:47]} 8. Ne2 {[%clk 0:02:28]}  Nxe5 {[%clk 0:02:45]} 9. Nxe5 {[%clk 0:02:19]}  Bxb5 {[%clk 0:02:44]} 10. a4 {[%clk 0:02:16]}  Bxe2 {[%clk 0:02:43]} 11. Qxe2 {[%clk 0:02:17]}  Nxd4 {[%clk 0:02:43]} 12. Qd3 {[%clk 0:02:16]}  c5 {[%clk 0:02:40]} 13. Be3 {[%clk 0:01:50]}  Nc6 {[%clk 0:02:34]} 14. Nxc6 {[%clk 0:01:48]}  bxc6 {[%clk 0:02:33]} 15. b3 {[%clk 0:01:47]}  O-O {[%clk 0:02:31]} 16. f4 {[%clk 0:01:39]}  Qa5 {[%clk 0:02:21]} 17. g3 {[%clk 0:01:30]}  Qb4 {[%clk 0:02:18]} 18. Rab1 {[%clk 0:01:25]}  a5 {[%clk 0:02:07]} 19. c3 {[%clk 0:01:17]}  Qe4 {[%clk 0:02:01]} 20. Qxe4 {[%clk 0:01:14]}  dxe4 {[%clk 0:02:01]} 21. f5 {[%clk 0:01:14]}  Rad8 {[%clk 0:01:40]} 22. fxe6 {[%clk 0:01:12]}  fxe6 {[%clk 0:01:39]} 23. Rfe1 {[%clk 0:01:10]}  Rd3 {[%clk 0:01:36]} 24. Bf4 {[%clk 0:01:07]}  Rxc3 {[%clk 0:01:30]} 25. Rxe4 {[%clk 0:01:05]}  Kf7 {[%clk 0:01:26]} 26. Bd2 {[%clk 0:01:01]}  Rd3 {[%clk 0:01:19]} 27. Bxa5 {[%clk 0:01:00]}  Rb8 {[%clk 0:01:17]} 28. Rbe1 {[%clk 0:00:55]}  Rbxb3 {[%clk 0:01:14]} 29. Rxe6 {[%clk 0:00:52]}  Bf6 {[%clk 0:01:13]} 30. Rxc6 {[%clk 0:00:50]}  Rb2 {[%clk 0:01:09]} 31. Bc7 {[%clk 0:00:41]}  Bd4+ {[%clk 0:01:06]} 32. Kh1 {[%clk 0:00:39]}  Rdd2 {[%clk 0:01:06]} 33. g4 {[%clk 0:00:38]}  Ra2 {[%clk 0:01:02]} 34. a5 {[%clk 0:00:36]}  Ra4 {[%clk 0:00:48]} 35. Bd6 {[%clk 0:00:28]}  Raa2 {[%clk 0:00:44]} 36. Re7+ {[%clk 0:00:25]}  Kg6 {[%clk 0:00:36]} 37. Bxc5+ {[%clk 0:00:22]}  Bf6 {[%clk 0:00:35]} 38. Re1 {[%clk 0:00:05]}  Rxh2+ {[%clk 0:00:31]} 39. Kg1 {[%clk 0:00:01]}  Rhc2 {[%clk 0:00:31]} 40. Kf1 {[%clk 0:00:01]}  Rxa5 {[%clk 0:00:29]} 0-1


[Site "https://www.chess.com"]

[Event "Titled Tuesday Blitz May 03 Late 2022"]
[White "Yanayt, Eugene"]
[Black "Gurevich, Dmitry"]
[WhiteFideId "2020165"]
[BlackFideId "2000407"]
[WhiteElo "2046"]
[BlackElo "2506"]
[Result "1/2-1/2"]
[Round "11"]
[TimeControl "180+1"]
[Date "2022.05.03"]
[WhiteClock "0:00:04"]
[BlackClock "0:01:10"]

1. d4 {[%clk 0:03:00]}  Nf6 {[%clk 0:02:58]} 2. c4 {[%clk 0:02:56]}  a6 {[%clk 0:02:58]} 3. Nc3 {[%clk 0:02:53]}  c5 {[%clk 0:02:58]} 4. Nf3 {[%clk 0:02:51]}  cxd4 {[%clk 0:02:57]} 5. Nxd4 {[%clk 0:02:51]}  d5 {[%clk 0:02:58]} 6. e3 {[%clk 0:02:49]}  g6 {[%clk 0:02:56]} 7. cxd5 {[%clk 0:02:48]}  Nxd5 {[%clk 0:02:55]} 8. Bc4 {[%clk 0:02:48]}  Nxc3 {[%clk 0:02:54]} 9. bxc3 {[%clk 0:02:48]}  Bg7 {[%clk 0:02:53]} 10. O-O {[%clk 0:02:47]}  O-O {[%clk 0:02:53]} 11. Bb2 {[%clk 0:02:44]}  Qc7 {[%clk 0:02:52]} 12. Bb3 {[%clk 0:02:41]}  Nc6 {[%clk 0:02:52]} 13. Qe2 {[%clk 0:02:29]}  Na5 {[%clk 0:02:49]} 14. c4 {[%clk 0:02:21]}  e5 {[%clk 0:02:48]} 15. Nf3 {[%clk 0:02:13]}  Be6 {[%clk 0:02:45]} 16. Rac1 {[%clk 0:02:10]}  b6 {[%clk 0:02:43]} 17. Bc3 {[%clk 0:01:56]}  Nb7 {[%clk 0:02:41]} 18. Qb2 {[%clk 0:01:53]}  f6 {[%clk 0:02:39]} 19. c5 {[%clk 0:01:49]}  Nxc5 {[%clk 0:02:30]} 20. Bxe6+ {[%clk 0:01:48]}  Nxe6 {[%clk 0:02:30]} 21. Bxe5 {[%clk 0:01:46]}  Qb7 {[%clk 0:02:30]} 22. Qb3 {[%clk 0:01:35]}  Rae8 {[%clk 0:02:25]} 23. Rc7 {[%clk 0:01:23]}  Qe4 {[%clk 0:02:24]} 24. Rc4 {[%clk 0:01:12]}  Qb7 {[%clk 0:02:19]} 25. Rc7 {[%clk 0:01:11]}  Qe4 {[%clk 0:02:17]} 26. Bd6 {[%clk 0:01:11]}  Rf7 {[%clk 0:02:15]} 27. Rxf7 {[%clk 0:01:07]}  Kxf7 {[%clk 0:02:14]} 28. Qxb6 {[%clk 0:01:03]}  Qd5 {[%clk 0:02:12]} 29. Qxa6 {[%clk 0:00:52]}  Ra8 {[%clk 0:02:11]} 30. Qb6 {[%clk 0:00:46]}  Rxa2 {[%clk 0:02:10]} 31. h3 {[%clk 0:00:41]}  g5 {[%clk 0:02:10]} 32. Bg3 {[%clk 0:00:29]}  h5 {[%clk 0:02:09]} 33. h4 {[%clk 0:00:28]}  g4 {[%clk 0:02:08]} 34. Nd4 {[%clk 0:00:26]}  Nxd4 {[%clk 0:02:08]} 35. exd4 {[%clk 0:00:25]}  Rd2 {[%clk 0:02:07]} 36. Re1 {[%clk 0:00:19]}  Kg6 {[%clk 0:01:56]} 37. Qb1+ {[%clk 0:00:17]}  Qf5 {[%clk 0:01:53]} 38. Qb4 {[%clk 0:00:14]}  Qd3 {[%clk 0:01:47]} 39. Qe7 {[%clk 0:00:08]}  Rd1 {[%clk 0:01:40]} 40. Qe8+ {[%clk 0:00:07]}  Kh6 {[%clk 0:01:40]} 41. Bf4+ {[%clk 0:00:07]}  Kh7 {[%clk 0:01:40]} 42. Qxh5+ {[%clk 0:00:07]}  Kg8 {[%clk 0:01:40]} 43. Qe8+ {[%clk 0:00:06]}  Kh7 {[%clk 0:01:39]} 44. Qh5+ {[%clk 0:00:06]}  Kg8 {[%clk 0:01:39]} 45. Qd5+ {[%clk 0:00:06]}  Kh7 {[%clk 0:01:38]} 46. Rxd1 {[%clk 0:00:06]}  Qxd1+ {[%clk 0:01:37]} 47. Kh2 {[%clk 0:00:07]}  Kg6 {[%clk 0:01:37]} 48. h5+ {[%clk 0:00:06]}  Kh7 {[%clk 0:01:36]} 49. Qf5+ {[%clk 0:00:07]}  Kg8 {[%clk 0:01:36]} 50. d5 {[%clk 0:00:07]}  Qd4 {[%clk 0:01:24]} 51. h6 {[%clk 0:00:06]}  Bf8 {[%clk 0:01:23]} 52. Qxg4+ {[%clk 0:00:06]}  Kh7 {[%clk 0:01:23]} 53. Qf5+ {[%clk 0:00:06]}  Kh8 {[%clk 0:01:22]} 54. g4 {[%clk 0:00:04]}  Qxf2+ {[%clk 0:01:20]} 55. Kh3 {[%clk 0:00:03]}  Qf3+ {[%clk 0:01:20]} 56. Kh4 {[%clk 0:00:04]}  Qh1+ {[%clk 0:01:19]} 57. Kg3 {[%clk 0:00:04]}  Qg1+ {[%clk 0:01:19]} 58. Kf3 {[%clk 0:00:04]}  Qf1+ {[%clk 0:01:17]} 59. Kg3 {[%clk 0:00:04]}  Qg1+ {[%clk 0:01:16]} 60. Kh3 {[%clk 0:00:05]}  Qf1+ {[%clk 0:01:15]} 61. Kh2 {[%clk 0:00:04]}  Qf2+ {[%clk 0:01:15]} 62. Kh3 {[%clk 0:00:04]}  Qf1+ {[%clk 0:01:14]} 63. Kg3 {[%clk 0:00:04]}  Qg1+ {[%clk 0:01:10]} 1/2-1/2


[Site "https://www.chess.com"]